[Event "*** Titled Tuesday Blitz"]
[Site "Chess.com"]
[Date "2020.04.28"]
[Round "2"]
[White "2nd_life"]
[Black "mshuaau0"]
[Result "1-0"]
[WhiteElo "2401"]
[BlackElo "2104"]
[TimeControl "180+1"]
[EndTime "10:14:12 PDT"]
[Termination "2nd_life won by resignation"]

1. e4 {[%clk 0:03:00.9]} 1... e5 {[%clk 0:02:59.4]} 2. f4 {[%clk 0:03:00.7]}
2... exf4 {[%clk 0:02:57.5]} 3. Nf3 {[%clk 0:03:00.8]} 3... Nf6 {[%clk
0:02:57.5]} 4. Nc3 {[%clk 0:03:00.3]} 4... d6 {[%clk 0:02:53.8]} 5. d4 {[%clk
0:02:59.2]} 5... Nh5 {[%clk 0:02:53.2]} 6. Bc4 {[%clk 0:02:54.3]} 6... g6 {[%clk
0:02:52.3]} 7. O-O {[%clk 0:02:49.3]} 7... Bg7 {[%clk 0:02:52.3]} 8. Ne2 {[%clk
0:02:34.4]} 8... O-O {[%clk 0:02:40.7]} 9. Nxf4 {[%clk 0:02:32.8]} 9... Nxf4
{[%clk 0:02:41.1]} 10. Bxf4 {[%clk 0:02:33.7]} 10... Nc6 {[%clk 0:02:37.8]} 11.
c3 {[%clk 0:02:30.3]} 11... a6 {[%clk 0:02:37.2]} 12. Qd2 {[%clk 0:02:29.3]}
12... Na5 {[%clk 0:02:32.3]} 13. Bd3 {[%clk 0:02:24.8]} 13... Be6 {[%clk
0:02:32.2]} 14. d5 {[%clk 0:02:23.3]} 14... Bd7 {[%clk 0:02:10.2]} 15. b4 {[%clk
0:02:20.5]} 15... Qf6 {[%clk 0:01:45.2]} 16. bxa5 {[%clk 0:02:11.8]} 16... Qxc3
{[%clk 0:01:45]} 17. Qxc3 {[%clk 0:02:12]} 17... Bxc3 {[%clk 0:01:45.4]} 18.
Rab1 {[%clk 0:02:10.2]} 18... Rab8 {[%clk 0:01:45.3]} 19. Bd2 {[%clk 0:02:08.1]}
19... Bg7 {[%clk 0:01:42.4]} 20. Rfc1 {[%clk 0:02:04.6]} 20... c6 {[%clk
0:01:39.7]} 21. Bc3 {[%clk 0:01:59.3]} 21... cxd5 {[%clk 0:01:38]} 22. Bxg7
{[%clk 0:01:56.2]} 22... Kxg7 {[%clk 0:01:38.9]} 23. exd5 {[%clk 0:01:56.5]} 1-0

[Event "*** Titled Tuesday Blitz"]
[Site "Chess.com"]
[Date "2020.04.28"]
[Round "2"]
[White "jucAxx"]
[Black "UmutErdemGunduz"]
[Result "0-1"]
[WhiteElo "2082"]
[BlackElo "2390"]
[TimeControl "180+1"]
[EndTime "10:14:23 PDT"]
[Termination "UmutErdemGunduz won by resignation"]

1. e4 {[%clk 0:02:57.4]} 1... c6 {[%clk 0:02:59.4]} 2. d4 {[%clk 0:02:57.3]}
2... Na6 {[%clk 0:02:59.5]} 3. Nc3 {[%clk 0:02:54.7]} 3... Nc7 {[%clk
0:02:59.2]} 4. f4 {[%clk 0:02:54.7]} 4... d5 {[%clk 0:02:59.4]} 5. e5 {[%clk
0:02:54.4]} 5... g6 {[%clk 0:02:59.9]} 6. Nf3 {[%clk 0:02:54.2]} 6... Bg7 {[%clk
0:02:56.6]} 7. Bd3 {[%clk 0:02:49.8]} 7... Bg4 {[%clk 0:02:56.2]} 8. O-O {[%clk
0:02:48.7]} 8... Nh6 {[%clk 0:02:56]} 9. Ne2 {[%clk 0:02:46.5]} 9... O-O {[%clk
0:02:54.8]} 10. h3 {[%clk 0:02:46.4]} 10... Bxf3 {[%clk 0:02:54.5]} 11. Rxf3
{[%clk 0:02:47.3]} 11... f6 {[%clk 0:02:54.1]} 12. f5 {[%clk 0:02:25.5]} 12...
fxe5 {[%clk 0:02:33.8]} 13. dxe5 {[%clk 0:02:16.5]} 13... Nxf5 {[%clk
0:02:31.7]} 14. Bxf5 {[%clk 0:02:16.4]} 14... Rxf5 {[%clk 0:02:28.2]} 15. Rxf5
{[%clk 0:02:16.1]} 15... gxf5 {[%clk 0:02:29.1]} 16. Bf4 {[%clk 0:02:14.3]}
16... Ne6 {[%clk 0:02:26.5]} 17. Bg3 {[%clk 0:02:07]} 17... Qb6+ {[%clk
0:02:25]} 18. Kh2 {[%clk 0:02:00.9]} 18... Rf8 {[%clk 0:02:25.4]} 19. c3 {[%clk
0:01:52.9]} 19... f4 {[%clk 0:02:25]} 20. Bh4 {[%clk 0:01:47.7]} 20... Bxe5
{[%clk 0:02:14.9]} 21. Bxe7 {[%clk 0:01:45.6]} 21... f3+ {[%clk 0:02:13.5]} 22.
Ng3 {[%clk 0:01:43.9]} 22... Bxg3+ {[%clk 0:01:44.3]} 23. Kxg3 {[%clk
0:01:42.1]} 23... Qc7+ {[%clk 0:01:44.4]} 0-1

[Event "*** Titled Tuesday Blitz"]
[Site "Chess.com"]
[Date "2020.04.28"]
[Round "2"]
[White "BvsN"]
[Black "Ariadna_Atreides"]
[Result "1-0"]
[WhiteElo "2375"]
[BlackElo "2034"]
[TimeControl "180+1"]
[EndTime "10:14:29 PDT"]
[Termination "BvsN won by resignation"]

1. d4 {[%clk 0:03:00.9]} 1... e6 {[%clk 0:02:59.4]} 2. c4 {[%clk 0:02:59.4]}
2... Bb4+ {[%clk 0:02:58.8]} 3. Nc3 {[%clk 0:02:58.4]} 3... Qe7 {[%clk
0:02:59.3]} 4. e4 {[%clk 0:02:54.2]} 4... Nf6 {[%clk 0:02:47.2]} 5. Bd3 {[%clk
0:02:43.9]} 5... d5 {[%clk 0:02:35.8]} 6. cxd5 {[%clk 0:02:30.7]} 6... exd5
{[%clk 0:02:34]} 7. e5 {[%clk 0:02:28.2]} 7... Ne4 {[%clk 0:02:19.9]} 8. Qc2
{[%clk 0:02:20.9]} 8... Bf5 {[%clk 0:02:12.7]} 9. Ne2 {[%clk 0:02:03.7]} 9... c5
{[%clk 0:02:00.4]} 10. O-O {[%clk 0:01:58.5]} 10... Bxc3 {[%clk 0:01:52.6]} 11.
Nxc3 {[%clk 0:01:51.2]} 11... cxd4 {[%clk 0:01:38.6]} 12. Nxd5 {[%clk
0:01:38.6]} 12... Qg5 {[%clk 0:01:15.6]} 13. Bxg5 {[%clk 0:01:34]} 1-0

[Event "*** Titled Tuesday Blitz"]
[Site "Chess.com"]
[Date "2020.04.28"]
[Round "2"]
[White "StockholmMissile"]
[Black "suneebaker"]
[Result "1-0"]
[WhiteElo "2465"]
[BlackElo "2240"]
[TimeControl "180+1"]
[EndTime "10:14:31 PDT"]
[Termination "StockholmMissile won by resignation"]

1. d4 {[%clk 0:03:00.9]} 1... Nf6 {[%clk 0:02:59.1]} 2. c4 {[%clk 0:02:59.9]}
2... g6 {[%clk 0:02:59.1]} 3. Nc3 {[%clk 0:02:59.3]} 3... d5 {[%clk 0:02:59.1]}
4. Nf3 {[%clk 0:02:59]} 4... Bg7 {[%clk 0:02:58.3]} 5. h4 {[%clk 0:02:58.5]}
5... c5 {[%clk 0:02:38.8]} 6. cxd5 {[%clk 0:02:43.6]} 6... Nxd5 {[%clk
0:02:37.5]} 7. h5 {[%clk 0:02:43.6]} 7... Nxc3 {[%clk 0:02:32.9]} 8. bxc3 {[%clk
0:02:41.8]} 8... Nc6 {[%clk 0:02:21.4]} 9. e3 {[%clk 0:02:33.5]} 9... Bg4 {[%clk
0:02:14.8]} 10. h6 {[%clk 0:02:27.3]} 10... Bf6 {[%clk 0:02:13]} 11. Be2 {[%clk
0:02:27.5]} 11... e6 {[%clk 0:01:53.2]} 12. Rb1 {[%clk 0:02:18.1]} 12... Qc7
{[%clk 0:01:42.5]} 13. O-O {[%clk 0:02:06.8]} 13... O-O {[%clk 0:01:37.1]} 14.
Ba3 {[%clk 0:02:03.1]} 14... b6 {[%clk 0:01:28.4]} 15. Qa4 {[%clk 0:01:55.9]}
15... Rfd8 {[%clk 0:01:09.8]} 16. dxc5 {[%clk 0:01:54.3]} 16... bxc5 {[%clk
0:01:09.3]} 17. Qxg4 {[%clk 0:01:52.1]} 1-0

[Event "*** Titled Tuesday Blitz"]
[Site "Chess.com"]
[Date "2020.04.28"]
[Round "2"]
[White "OhanyanEminChess"]
[Black "KNVB"]
[Result "0-1"]
[WhiteElo "2490"]
[BlackElo "2723"]
[TimeControl "180+1"]
[EndTime "10:14:43 PDT"]
[Termination "KNVB won by resignation"]

1. e4 {[%clk 0:03:00.9]} 1... c5 {[%clk 0:02:56.7]} 2. Nf3 {[%clk 0:02:59.9]}
2... e6 {[%clk 0:02:56.8]} 3. d4 {[%clk 0:02:58.8]} 3... cxd4 {[%clk 0:02:57.7]}
4. Nxd4 {[%clk 0:02:58.1]} 4... Nc6 {[%clk 0:02:58.1]} 5. Nc3 {[%clk 0:02:58.4]}
5... Qc7 {[%clk 0:02:56.7]} 6. Be3 {[%clk 0:02:54.7]} 6... a6 {[%clk 0:02:56.4]}
7. f3 {[%clk 0:02:54.5]} 7... Nf6 {[%clk 0:02:51.6]} 8. Qd2 {[%clk 0:02:54.3]}
8... Be7 {[%clk 0:02:51.3]} 9. O-O-O {[%clk 0:02:54.2]} 9... h5 {[%clk
0:02:51.5]} 10. g3 {[%clk 0:02:47.9]} 10... b5 {[%clk 0:02:43.4]} 11. Bg2 {[%clk
0:02:47.1]} 11... Na5 {[%clk 0:02:28.7]} 12. Qe2 {[%clk 0:02:33.6]} 12... Nc4
{[%clk 0:01:50.7]} 13. Bg5 {[%clk 0:02:30.7]} 13... Bb7 {[%clk 0:01:47.8]} 14.
f4 {[%clk 0:02:28.6]} 14... Rc8 {[%clk 0:01:44.6]} 15. Rhe1 {[%clk 0:02:08.7]}
15... Nxb2 {[%clk 0:01:30.2]} 16. Kxb2 {[%clk 0:01:36.2]} 16... Qxc3+ {[%clk
0:01:29.5]} 17. Kb1 {[%clk 0:01:30.3]} 17... Ba3 {[%clk 0:01:23.7]} 0-1

[Event "*** Titled Tuesday Blitz"]
[Site "Chess.com"]
[Date "2020.04.28"]
[Round "2"]
[White "PavelChernomordik"]
[Black "Tynano"]
[Result "1-0"]
[WhiteElo "2415"]
[BlackElo "2136"]
[TimeControl "180+1"]
[EndTime "10:14:44 PDT"]
[Termination "PavelChernomordik won by resignation"]

1. e4 {[%clk 0:03:00.9]} 1... e5 {[%clk 0:02:59.7]} 2. Nf3 {[%clk 0:02:58.7]}
2... Nc6 {[%clk 0:02:59.8]} 3. Bb5 {[%clk 0:02:58.6]} 3... f5 {[%clk 0:02:58.7]}
4. d4 {[%clk 0:02:57.5]} 4... fxe4 {[%clk 0:02:56.6]} 5. Bxc6 {[%clk 0:02:56.2]}
5... bxc6 {[%clk 0:02:51.7]} 6. Nxe5 {[%clk 0:02:55.8]} 6... Nf6 {[%clk
0:02:50.5]} 7. O-O {[%clk 0:02:54.5]} 7... d6 {[%clk 0:02:34.5]} 8. Nxc6 {[%clk
0:02:52.7]} 8... Qd7 {[%clk 0:02:34.4]} 9. Na5 {[%clk 0:02:49.8]} 9... d5 {[%clk
0:02:32.3]} 10. c4 {[%clk 0:02:45.7]} 10... c6 {[%clk 0:02:27.4]} 11. Qa4 {[%clk
0:02:44]} 11... Bb7 {[%clk 0:02:07.1]} 12. Nxb7 {[%clk 0:02:39.5]} 12... Qxb7
{[%clk 0:02:08]} 13. Nc3 {[%clk 0:02:37.5]} 13... Kf7 {[%clk 0:02:03.4]} 14. f3
{[%clk 0:02:32.3]} 14... Re8 {[%clk 0:01:44.8]} 15. fxe4 {[%clk 0:02:28.8]}
15... dxe4 {[%clk 0:01:44.8]} 16. Bg5 {[%clk 0:02:28.1]} 16... c5 {[%clk
0:01:43.4]} 17. Bxf6 {[%clk 0:02:17.5]} 17... gxf6 {[%clk 0:01:42.9]} 18. Rxf6+
{[%clk 0:02:16.1]} 18... Kxf6 {[%clk 0:01:35.4]} 19. Qxe8 {[%clk 0:02:15.3]}
19... cxd4 {[%clk 0:01:31.2]} 20. Rf1+ {[%clk 0:02:10.9]} 20... Kg7 {[%clk
0:01:16.8]} 21. Qe5+ {[%clk 0:02:07.6]} 21... Kg8 {[%clk 0:01:15.8]} 22. Nxe4
{[%clk 0:02:04.2]} 1-0

[Event "*** Titled Tuesday Blitz"]
[Site "Chess.com"]
[Date "2020.04.28"]
[Round "2"]
[White "DinaBelenkaya"]
[Black "JozefKneht"]
[Result "0-1"]
[WhiteElo "2174"]
[BlackElo "2425"]
[TimeControl "180+1"]
[EndTime "10:14:54 PDT"]
[Termination "JozefKneht won by checkmate"]

1. e4 {[%clk 0:03:00.9]} 1... e5 {[%clk 0:02:57.6]} 2. Nf3 {[%clk 0:02:56]} 2...
Nc6 {[%clk 0:02:53.7]} 3. d4 {[%clk 0:02:55.3]} 3... exd4 {[%clk 0:02:52.9]} 4.
Nxd4 {[%clk 0:02:56.2]} 4... Nf6 {[%clk 0:02:48.3]} 5. Nxc6 {[%clk 0:02:55.6]}
5... bxc6 {[%clk 0:02:48.4]} 6. Bd3 {[%clk 0:02:55.8]} 6... d5 {[%clk
0:02:46.8]} 7. exd5 {[%clk 0:02:51.1]} 7... cxd5 {[%clk 0:02:46.8]} 8. O-O
{[%clk 0:02:51.6]} 8... Be7 {[%clk 0:02:36.2]} 9. c4 {[%clk 0:02:51.5]} 9... d4
{[%clk 0:02:31.7]} 10. b4 {[%clk 0:02:47.3]} 10... O-O {[%clk 0:02:29.9]} 11. a3
{[%clk 0:02:47.1]} 11... c5 {[%clk 0:02:14.2]} 12. Bb2 {[%clk 0:02:46.7]} 12...
Be6 {[%clk 0:02:12.7]} 13. Nd2 {[%clk 0:02:27.5]} 13... cxb4 {[%clk 0:02:09.7]}
14. axb4 {[%clk 0:02:27]} 14... Bxb4 {[%clk 0:02:08.8]} 15. Nb3 {[%clk
0:02:16.7]} 15... Bc3 {[%clk 0:02:06.3]} 16. Bxc3 {[%clk 0:02:05.8]} 16... dxc3
{[%clk 0:02:05.8]} 17. Qc2 {[%clk 0:02:04.3]} 17... Qc7 {[%clk 0:01:52.9]} 18.
Qxc3 {[%clk 0:01:59.9]} 18... Ng4 {[%clk 0:01:51.7]} 19. f4 {[%clk 0:01:21.9]}
19... Rad8 {[%clk 0:01:36.5]} 20. f5 {[%clk 0:01:06.8]} 20... Qxh2# {[%clk
0:01:34.1]} 0-1

[Event "*** Titled Tuesday Blitz"]
[Site "Chess.com"]
[Date "2020.04.28"]
[Round "2"]
[White "walkingcreep"]
[Black "ARMQUEEN"]
[Result "1-0"]
[WhiteElo "2642"]
[BlackElo "2317"]
[TimeControl "180+1"]
[EndTime "10:14:56 PDT"]
[Termination "walkingcreep won by resignation"]

1. d4 {[%clk 0:03:00.5]} 1... d5 {[%clk 0:02:59.7]} 2. c4 {[%clk 0:02:59.9]}
2... dxc4 {[%clk 0:03:00]} 3. Nf3 {[%clk 0:02:56.5]} 3... e6 {[%clk 0:02:59.7]}
4. e3 {[%clk 0:02:55.7]} 4... Nf6 {[%clk 0:02:59.3]} 5. Bxc4 {[%clk 0:02:55]}
5... a6 {[%clk 0:03:00.2]} 6. a4 {[%clk 0:02:54.6]} 6... c5 {[%clk 0:03:00]} 7.
O-O {[%clk 0:02:53.7]} 7... Qc7 {[%clk 0:03:00.1]} 8. Qe2 {[%clk 0:02:41.9]}
8... Be7 {[%clk 0:02:58.1]} 9. Nc3 {[%clk 0:02:41.6]} 9... Nc6 {[%clk
0:02:57.1]} 10. dxc5 {[%clk 0:02:30.4]} 10... Bxc5 {[%clk 0:02:54.7]} 11. h3
{[%clk 0:02:26.7]} 11... O-O {[%clk 0:02:52]} 12. Rd1 {[%clk 0:02:25.1]} 12...
b6 {[%clk 0:02:48.7]} 13. e4 {[%clk 0:02:23.7]} 13... Bb7 {[%clk 0:02:46.4]} 14.
e5 {[%clk 0:02:08.5]} 14... Nd7 {[%clk 0:02:42.7]} 15. Bf4 {[%clk 0:02:05.8]}
15... Rac8 {[%clk 0:02:35.6]} 16. Rac1 {[%clk 0:02:01.6]} 16... Rfd8 {[%clk
0:02:34.4]} 17. Ne4 {[%clk 0:01:55.3]} 17... Qb8 {[%clk 0:02:29.3]} 18. Neg5
{[%clk 0:01:45]} 18... h6 {[%clk 0:02:26.3]} 19. Nxe6 {[%clk 0:01:42.9]} 19...
fxe6 {[%clk 0:02:22.6]} 20. Bxe6+ {[%clk 0:01:42.7]} 20... Kh8 {[%clk
0:02:22.2]} 21. Bxd7 {[%clk 0:01:35.8]} 21... Ne7 {[%clk 0:02:17.7]} 22. Bxc8
{[%clk 0:01:32]} 22... Rxc8 {[%clk 0:02:18.6]} 23. Be3 {[%clk 0:01:21.4]} 23...
Bxf3 {[%clk 0:02:12.9]} 24. Qxf3 {[%clk 0:01:21.1]} 24... Qxe5 {[%clk
0:02:13.4]} 25. Bxc5 {[%clk 0:01:21.1]} 25... bxc5 {[%clk 0:02:14.3]} 26. Re1
{[%clk 0:01:21.2]} 26... Qg5 {[%clk 0:02:12.2]} 27. Qe3 {[%clk 0:01:19.2]} 27...
Nd5 {[%clk 0:01:56.3]} 28. Qxg5 {[%clk 0:01:18.4]} 28... hxg5 {[%clk 0:01:55.6]}
29. Re5 {[%clk 0:01:18.4]} 29... Nf4 {[%clk 0:01:56.2]} 30. Rexc5 {[%clk
0:01:15.3]} 30... Rb8 {[%clk 0:01:56.6]} 31. Rc8+ {[%clk 0:01:14]} 31... Rxc8
{[%clk 0:01:56.1]} 32. Rxc8+ {[%clk 0:01:14.9]} 1-0

[Event "*** Titled Tuesday Blitz"]
[Site "Chess.com"]
[Date "2020.04.28"]
[Round "2"]
[White "PlayChessSimple"]
[Black "lelya96"]
[Result "1-0"]
[WhiteElo "2558"]
[BlackElo "2294"]
[TimeControl "180+1"]
[EndTime "10:15:03 PDT"]
[Termination "PlayChessSimple won by checkmate"]

1. e4 {[%clk 0:03:00.9]} 1... e5 {[%clk 0:02:59.6]} 2. Nf3 {[%clk 0:02:59.9]}
2... Nc6 {[%clk 0:03:00.1]} 3. Nc3 {[%clk 0:03:00.1]} 3... Nf6 {[%clk
0:02:58.7]} 4. Bb5 {[%clk 0:02:59.9]} 4... Bb4 {[%clk 0:02:57.9]} 5. O-O {[%clk
0:02:58.8]} 5... Bxc3 {[%clk 0:02:57.3]} 6. dxc3 {[%clk 0:02:52.9]} 6... d6
{[%clk 0:02:56]} 7. Re1 {[%clk 0:02:52.3]} 7... O-O {[%clk 0:02:55.6]} 8. Bg5
{[%clk 0:02:52.2]} 8... Qe7 {[%clk 0:02:45.4]} 9. Nd2 {[%clk 0:02:50.8]} 9...
Nd8 {[%clk 0:02:44.2]} 10. Nf1 {[%clk 0:02:48.9]} 10... Ne6 {[%clk 0:02:40.7]}
11. Bh4 {[%clk 0:02:47.9]} 11... g5 {[%clk 0:02:31.8]} 12. Bg3 {[%clk
0:02:46.8]} 12... Nf4 {[%clk 0:02:30.8]} 13. Ne3 {[%clk 0:02:43.9]} 13... Nxe4
{[%clk 0:02:24.6]} 14. Bxf4 {[%clk 0:02:37.1]} 14... gxf4 {[%clk 0:02:04.3]} 15.
Nd5 {[%clk 0:02:36.8]} 15... Qg5 {[%clk 0:01:50.3]} 16. Rxe4 {[%clk 0:02:32.9]}
16... c6 {[%clk 0:01:50.4]} 17. Nc7 {[%clk 0:02:31.1]} 17... Bf5 {[%clk
0:01:38.5]} 18. Re1 {[%clk 0:02:09.3]} 18... Rac8 {[%clk 0:01:18.8]} 19. Qxd6
{[%clk 0:02:05.9]} 19... cxb5 {[%clk 0:00:41.8]} 20. Qxe5 {[%clk 0:02:01]} 20...
Qg6 {[%clk 0:00:41.6]} 21. Nd5 {[%clk 0:01:58.4]} 21... Bh3 {[%clk 0:00:40]} 22.
Ne7# {[%clk 0:01:57.4]} 1-0

[Event "*** Titled Tuesday Blitz"]
[Site "Chess.com"]
[Date "2020.04.28"]
[Round "2"]
[White "FeketeBarika"]
[Black "Dixit_Nikhil"]
[Result "0-1"]
[WhiteElo "2220"]
[BlackElo "2457"]
[TimeControl "180+1"]
[EndTime "10:15:03 PDT"]
[Termination "Dixit_Nikhil won by resignation"]

1. Nf3 {[%clk 0:02:59.1]} 1... Nf6 {[%clk 0:02:59.8]} 2. g3 {[%clk 0:03:00]}
2... g6 {[%clk 0:03:00.5]} 3. Bg2 {[%clk 0:02:56.4]} 3... Bg7 {[%clk 0:03:01.4]}
4. O-O {[%clk 0:02:45.6]} 4... O-O {[%clk 0:03:02.3]} 5. c4 {[%clk 0:02:46.5]}
5... d6 {[%clk 0:03:03.2]} 6. Nc3 {[%clk 0:02:44.2]} 6... c5 {[%clk 0:03:03.4]}
7. d3 {[%clk 0:02:45.1]} 7... Nc6 {[%clk 0:03:03.2]} 8. Rb1 {[%clk 0:02:45.6]}
8... a6 {[%clk 0:03:02.6]} 9. a3 {[%clk 0:02:45.9]} 9... Rb8 {[%clk 0:03:02.5]}
10. b4 {[%clk 0:02:46.8]} 10... cxb4 {[%clk 0:03:02.8]} 11. axb4 {[%clk
0:02:45]} 11... b5 {[%clk 0:03:03.3]} 12. cxb5 {[%clk 0:02:44.3]} 12... axb5
{[%clk 0:03:04.2]} 13. Bd2 {[%clk 0:02:43.2]} 13... Bd7 {[%clk 0:03:04]} 14. e3
{[%clk 0:02:32.9]} 14... e5 {[%clk 0:03:01.9]} 15. d4 {[%clk 0:02:24.1]} 15...
e4 {[%clk 0:02:46.1]} 16. Ne1 {[%clk 0:02:19.7]} 16... d5 {[%clk 0:02:46]} 17.
h3 {[%clk 0:02:10.4]} 17... Be6 {[%clk 0:02:45.1]} 18. Ne2 {[%clk 0:02:08.2]}
18... Ne8 {[%clk 0:02:43.8]} 19. Rc1 {[%clk 0:02:05]} 19... Qd7 {[%clk
0:02:43.3]} 20. Qc2 {[%clk 0:02:03.3]} 20... Rc8 {[%clk 0:02:42.5]} 21. Qb3
{[%clk 0:01:54.7]} 21... Nd6 {[%clk 0:02:39.8]} 22. Kh2 {[%clk 0:01:39.2]} 22...
Nc4 {[%clk 0:02:37.8]} 23. Bc3 {[%clk 0:01:37.7]} 23... Ra8 {[%clk 0:02:35.7]}
24. Nf4 {[%clk 0:01:32.4]} 24... Ra3 {[%clk 0:02:34.8]} 25. Qc2 {[%clk
0:01:24.1]} 25... Rfa8 {[%clk 0:02:34.2]} 26. Nxe6 {[%clk 0:01:20.7]} 26... Qxe6
{[%clk 0:02:23.6]} 27. Qd1 {[%clk 0:01:19.3]} 27... f5 {[%clk 0:02:20.8]} 28.
Nc2 {[%clk 0:00:57.3]} 28... Rxc3 {[%clk 0:02:16.6]} 0-1

[Event "*** Titled Tuesday Blitz"]
[Site "Chess.com"]
[Date "2020.04.28"]
[Round "2"]
[White "josiwales"]
[Black "madalin18"]
[Result "1-0"]
[WhiteElo "2605"]
[BlackElo "2097"]
[TimeControl "180+1"]
[EndTime "10:15:04 PDT"]
[Termination "josiwales won by resignation"]

1. e4 {[%clk 0:03:00.9]} 1... c5 {[%clk 0:02:59.4]} 2. Nc3 {[%clk 0:02:59.9]}
2... Nc6 {[%clk 0:02:58.7]} 3. g3 {[%clk 0:03:00.8]} 3... g6 {[%clk 0:02:58]} 4.
Bg2 {[%clk 0:03:01.7]} 4... Bg7 {[%clk 0:02:57.8]} 5. d3 {[%clk 0:03:02.6]} 5...
e6 {[%clk 0:02:57.8]} 6. Be3 {[%clk 0:03:03]} 6... Nd4 {[%clk 0:02:51.3]} 7. Qd2
{[%clk 0:03:02.5]} 7... Ne7 {[%clk 0:02:47.6]} 8. Nd1 {[%clk 0:03:00.9]} 8... d6
{[%clk 0:02:39.6]} 9. c3 {[%clk 0:03:00.6]} 9... Ndc6 {[%clk 0:02:39.3]} 10. Bh6
{[%clk 0:03:01.2]} 10... O-O {[%clk 0:02:38.6]} 11. h4 {[%clk 0:03:00.9]} 11...
d5 {[%clk 0:02:32.4]} 12. h5 {[%clk 0:03:00.2]} 12... dxe4 {[%clk 0:02:30.4]}
13. hxg6 {[%clk 0:02:51.7]} 13... fxg6 {[%clk 0:01:42.8]} 14. Bxg7 {[%clk
0:02:49.8]} 14... Kxg7 {[%clk 0:01:42.9]} 15. Qh6+ {[%clk 0:02:50.3]} 15... Kf7
{[%clk 0:01:43]} 16. Qxh7+ {[%clk 0:02:50.3]} 16... Ke8 {[%clk 0:01:43]} 17.
Bxe4 {[%clk 0:02:50.9]} 17... Ne5 {[%clk 0:01:32.8]} 18. Kf1 {[%clk 0:02:13.1]}
18... Rf7 {[%clk 0:00:34.2]} 19. Qh8+ {[%clk 0:02:05.2]} 19... Kd7 {[%clk
0:00:34]} 20. Qxe5 {[%clk 0:02:05.2]} 1-0

[Event "*** Titled Tuesday Blitz"]
[Site "Chess.com"]
[Date "2020.04.28"]
[Round "2"]
[White "BikingBrian"]
[Black "Willychess95"]
[Result "0-1"]
[WhiteElo "2289"]
[BlackElo "2558"]
[TimeControl "180+1"]
[EndTime "10:15:07 PDT"]
[Termination "Willychess95 won by resignation"]

1. d4 {[%clk 0:03:00.9]} 1... Nf6 {[%clk 0:02:59.8]} 2. Bg5 {[%clk 0:03:00.1]}
2... e6 {[%clk 0:02:59.7]} 3. Nd2 {[%clk 0:02:59.6]} 3... h6 {[%clk 0:02:58.9]}
4. Bh4 {[%clk 0:02:59.1]} 4... d6 {[%clk 0:02:57.3]} 5. e4 {[%clk 0:02:58.1]}
5... Nbd7 {[%clk 0:02:57.2]} 6. f4 {[%clk 0:02:53.2]} 6... e5 {[%clk 0:02:55.1]}
7. fxe5 {[%clk 0:02:52.7]} 7... dxe5 {[%clk 0:02:56]} 8. Ngf3 {[%clk 0:02:45.1]}
8... exd4 {[%clk 0:02:50.1]} 9. e5 {[%clk 0:02:46]} 9... g5 {[%clk 0:02:48.4]}
10. Bg3 {[%clk 0:02:41.7]} 10... Nh5 {[%clk 0:02:46.2]} 11. Nxd4 {[%clk
0:02:38.2]} 11... Nxg3 {[%clk 0:02:45.2]} 12. hxg3 {[%clk 0:02:39.1]} 12... Nxe5
{[%clk 0:02:43.5]} 13. N2f3 {[%clk 0:02:28.7]} 13... Bg7 {[%clk 0:02:40.3]} 14.
Nxe5 {[%clk 0:01:41.1]} 14... Bxe5 {[%clk 0:02:39.5]} 15. Ne2 {[%clk 0:01:02.6]}
15... Qxd1+ {[%clk 0:02:37.8]} 16. Rxd1 {[%clk 0:01:03.5]} 16... Bxb2 {[%clk
0:02:38.1]} 17. c3 {[%clk 0:01:00.5]} 17... Ba3 {[%clk 0:02:36.6]} 18. Kf2
{[%clk 0:00:55.6]} 18... Bc5+ {[%clk 0:02:31.7]} 19. Nd4 {[%clk 0:00:55.7]}
19... Bg4 {[%clk 0:02:29]} 20. Re1+ {[%clk 0:00:53.7]} 20... Kf8 {[%clk
0:02:28.7]} 21. Bc4 {[%clk 0:00:48.1]} 21... Kg7 {[%clk 0:02:25.4]} 22. Rhf1
{[%clk 0:00:47.5]} 22... Rhe8 {[%clk 0:02:20]} 23. Rxe8 {[%clk 0:00:46]} 23...
Rxe8 {[%clk 0:02:20.9]} 24. Kg1 {[%clk 0:00:46.4]} 24... Be6 {[%clk 0:02:20.8]}
25. Bxe6 {[%clk 0:00:41.8]} 25... Rxe6 {[%clk 0:02:20.9]} 26. Kh2 {[%clk
0:00:41.6]} 26... Bxd4 {[%clk 0:02:20.8]} 27. cxd4 {[%clk 0:00:42.3]} 27... Rd6
{[%clk 0:02:21.3]} 28. Rd1 {[%clk 0:00:41.7]} 28... Rd5 {[%clk 0:02:20.3]} 29.
g4 {[%clk 0:00:41.7]} 29... c5 {[%clk 0:02:20.4]} 0-1

[Event "*** Titled Tuesday Blitz"]
[Site "Chess.com"]
[Date "2020.04.28"]
[Round "2"]
[White "okriak"]
[Black "Ranindu2003"]
[Result "1-0"]
[WhiteElo "2851"]
[BlackElo "2546"]
[TimeControl "180+1"]
[EndTime "10:15:13 PDT"]
[Termination "okriak won by resignation"]

1. Nf3 {[%clk 0:03:00.9]} 1... Nf6 {[%clk 0:02:59.6]} 2. c4 {[%clk 0:03:01.3]}
2... e6 {[%clk 0:02:59.8]} 3. g3 {[%clk 0:03:00.5]} 3... d5 {[%clk 0:02:59.8]}
4. Bg2 {[%clk 0:03:01.1]} 4... Be7 {[%clk 0:02:59.2]} 5. O-O {[%clk 0:03:01.2]}
5... O-O {[%clk 0:02:59.7]} 6. d4 {[%clk 0:03:01.7]} 6... dxc4 {[%clk
0:02:59.7]} 7. Qc2 {[%clk 0:03:01.6]} 7... a6 {[%clk 0:02:59.7]} 8. a4 {[%clk
0:03:01.4]} 8... Nc6 {[%clk 0:03:00]} 9. Qxc4 {[%clk 0:02:59.2]} 9... Na5 {[%clk
0:03:00.2]} 10. Qc2 {[%clk 0:02:51.5]} 10... b6 {[%clk 0:03:00.4]} 11. Bd2
{[%clk 0:02:47.3]} 11... Bb7 {[%clk 0:02:35.8]} 12. Bxa5 {[%clk 0:02:46.8]}
12... bxa5 {[%clk 0:02:36.7]} 13. Nbd2 {[%clk 0:02:47]} 13... Rc8 {[%clk
0:02:28.5]} 14. Nb3 {[%clk 0:02:44.8]} 14... Bd5 {[%clk 0:02:16.9]} 15. Nc5
{[%clk 0:02:41.1]} 15... Bxc5 {[%clk 0:02:05.5]} 16. Qxc5 {[%clk 0:02:40.5]}
16... c6 {[%clk 0:02:00.3]} 17. Ne5 {[%clk 0:02:39.9]} 17... Bxg2 {[%clk
0:01:45.3]} 18. Kxg2 {[%clk 0:02:39.7]} 18... Qd5+ {[%clk 0:01:32.3]} 19. Qxd5
{[%clk 0:02:39.6]} 19... cxd5 {[%clk 0:01:33.2]} 20. Rfc1 {[%clk 0:02:39.7]}
20... Rb8 {[%clk 0:01:08.1]} 21. Rc2 {[%clk 0:02:37.6]} 21... Rfc8 {[%clk
0:00:55.5]} 22. Nc6 {[%clk 0:02:29.5]} 22... Kf8 {[%clk 0:00:40]} 23. Rac1
{[%clk 0:02:28.5]} 23... Ke8 {[%clk 0:00:29]} 24. Nxb8 {[%clk 0:02:26.5]} 24...
Rxb8 {[%clk 0:00:28.4]} 25. Rc8+ {[%clk 0:02:25.5]} 25... Rxc8 {[%clk
0:00:27.4]} 26. Rxc8+ {[%clk 0:02:26.1]} 26... Kd7 {[%clk 0:00:26.7]} 27. Ra8
{[%clk 0:02:26.2]} 1-0